bitfinex/quotes_ETHUSD_20240820
["timestamp","ask_amount","ask_price","bid_price","bid_amount"]
[1724164076953,3.82872,2611.9,2611.2,6.13046]
[1724164077150,3.82877,2611.8,2611.3,0.55]
[1724164077389,3.82874,2611.9,2611.3,0.55]
[1724164077593,3.82886,2611.8,2611.3,0.55]
[1724164078099,3.82874,2611.9,2611.3,4.3795]
[1724164078263,7.65746,2611.9,2611.3,5.047555]
[1724164078463,3.82872,2611.9,2611.3,5.047555]
[1724164078795,3.82849,2612.0,2611.4,3.82928]
[1724164079003,7.65686,2612.1,2611.5,0.55]
[1724164079149,3.82841,2612.1,2611.5,3.82912]
[1724164079349,3.82841,2612.1,2611.6,0.55]
[1724164079549,3.8287,2611.9,2611.6,0.55]
[1724164079749,7.65741,2611.9,2611.4,0.55]
[1724164080053,4.32822308,2612.1,2611.4,0.55]
[1724164080416,4.99764079,2612.3,2611.8,3.82877]
[1724164080556,1.16952079,2612.4,2611.9,0.55]
[1724164080753,1.55938857,2612.5,2611.9,0.55]
[1724164080754,1.16952079,2612.5,2611.9,0.55]
[1724164080951,1.16952079,2612.5,2611.8,6.31395]
[1724164080952,3.8282,2612.2,2611.8,2.4852]
[1724164081180,3.82886,2611.8,2611.3,2.253]
[1724164081382,3.82916,2611.6,2611.3,2.253]
[1724164081701,2.48796381,2612.1,2611.0,3.82985]
[1724164081702,2.48796381,2612.1,2611.0,2.253]
[1724164081703,3.82945,2611.4,2611.0,2.253]
[1724164081845,4.99817079,2611.9,2611.0,2.253]
[1724164081846,3.82921,2611.6,2611.0,2.253]
[1724164082046,3.82927,2611.5,2611.0,2.253]
[1724164082261,3.82908,2611.6,2611.0,2.253]
[1724164082491,4.32894008,2611.6,2611.0,2.253]
[1724164082674,3.82908,2611.6,2611.0,6.08286]
[1724164082990,3.82886,2611.8,2611.0,6.08286]
[1724164083406,3.82886,2611.8,2611.2,3.82965]
[1724164083558,7.65774,2611.8,2611.2,3.82965]
[1724164083906,3.82914,2611.6,2611.0,6.08288]
[1724164084068,3.82892,2611.7,2611.2,3.82954]
[1724164084430,3.82885,2611.8,2611.2,3.82954]
[1724164084431,3.82885,2611.8,2611.3,0.55]
[1724164084773,3.82855,2612.0,2611.3,0.55]
[1724164084974,3.82855,2612.0,2611.4,7.65861]
[1724164085270,4.99780079,2612.2,2611.6,3.82893]
[1724164085271,3.8282,2612.2,2611.6,3.82893]
[1724164085699,3.82879,2611.8,2611.5,2.311]
[1724164086034,3.82904,2611.7,2611.3,0.55]
[1724164086314,2.3656,2612.0,2611.3,0.55]
[1724164086519,3.82907,2611.6,2611.3,0.55]
[1724164086727,3.82931,2611.5,2610.8,6.08123]
[1724164086904,7.65862,2611.5,2610.8,6.08116]
[1724164087232,3.82951,2611.3,2610.8,2.251]
[1724164087370,3.8298,2611.1,2610.4,6.25882]
[1724164087575,3.8298,2611.1,2610.4,10.08957]
[1724164087797,7.6597,2611.1,2610.4,6.25882]
[1724164088012,3.8298,2611.1,2610.5,3.83053]
[1724164088237,3.82934,2611.5,2610.8,7.6604]
[1724164088399,3.82928,2611.5,2610.5,1.008935]
[1724164088604,3.82928,2611.5,2610.9,3.83008]
[1724164088923,3.82928,2611.5,2610.5,3.83059]
[1724164088924,3.82983,2611.1,2610.5,3.83059]
[1724164089112,0.07636381,2611.5,2610.5,3.83058]
[1724164089113,3.82978,2611.2,2610.5,3.83058]
[1724164089313,3.83011,2610.9,2610.3,3.83087]
[1724164089484,7.66013,2611.0,2610.3,7.66176]
[1724164089823,3.83003,2611.0,2610.4,3.8308]
[1724164089995,7.66007,2611.0,2610.3,3.83087]
[1724164090202,3.83003,2611.0,2610.3,7.66175]
[1724164090417,3.83011,2610.9,2610.3,3.83087]
[1724164090621,3.83032,2610.8,2610.1,3.83112]
[1724164091183,3.83054,2610.6,2610.0,0.01]
[1724164091493,3.83127,2610.1,2610.0,0.01]
[1724164091889,0.07636381,2610.2,2610.0,0.01]
[1724164092090,6.10681,2610.3,2610.0,0.01]
[1724164092290,6.10679,2610.3,2610.0,0.01]
[1724164092616,3.83112,2610.2,2610.0,0.01]
[1724164093517,3.83127,2610.1,2610.0,0.01]
[1724164093846,7.66254,2610.1,2610.0,0.01]
[1724164094291,11.49381,2610.1,2610.0,0.01]
[1724164094489,7.66254,2610.1,2610.0,0.01]
[1724164094718,5.54291947,2610.1,2610.0,0.01]
[1724164094933,7.89458617,2610.3,2610.0,0.01]
[1724164094934,3.83114,2610.2,2610.0,0.01]
[1724164095091,2.89401538,2610.3,2610.0,0.01]
[1724164095522,3.83127,2610.1,2610.0,0.01]
[1724164096233,3.83113,2610.2,2610.0,0.01]
[1724164096449,7.66254,2610.1,2610.0,0.01]
[1724164096730,3.8312,2610.2,2610.0,0.01]
[1724164096936,3.83103,2610.3,2610.0,0.01]
[1724164097445,3.83083,2610.5,2610.0,0.56]
[1724164097593,3.8309,2610.4,2610.0,0.56]
[1724164097928,4.440933,2610.5,2610.0,0.56]
[1724164097929,7.66207,2610.3,2610.0,0.56]
[1724164098139,8.271643,2610.5,2610.0,0.56]
[1724164098291,3.83047,2610.7,2610.1,2.4401]
[1724164098624,3.83024,2610.8,2610.2,4.45766006]
[1724164098792,2.2632,2611.1,2610.2,0.55]
[1724164099191,3.8307,2610.5,2610.2,0.55]
[1724164099434,3.83063,2610.6,2610.2,0.55]
[1724164099820,3.83068,2610.5,2610.1,0.55]
[1724164100026,3.83062,2610.6,2610.0,0.56]
[1724164100333,2.47,2610.5,2610.0,0.56]
[1724164100547,3.8309,2610.4,2610.0,0.56]
[1724164102140,7.66187,2610.4,2610.0,0.56]
[1724164102335,3.83127,2610.1,2610.0,0.01]
[1724164102545,7.66254,2610.1,2610.0,0.01]
[1724164103421,1.16952079,2610.7,2610.2,3.83112]
[1724164103756,1.94653929,2611.0,2610.2,3.27730397]
[1724164103757,1.16952079,2611.0,2610.2,3.27730397]
[1724164104040,3.83021,2610.9,2610.2,2.3272]
[1724164104246,4.99936079,2611.1,2610.2,2.56092]
[1724164104247,3.82984,2611.1,2610.2,2.56092]
[1724164104412,3.83011,2610.9,2610.2,2.56092]
[1724164104749,3.83041,2610.7,2610.2,2.56092]
[1724164104958,3.83011,2610.9,2610.3,0.55]
[1724164104959,7.66035,2610.9,2610.3,0.55]
[1724164105133,0.88298708,2610.9,2610.3,0.55]
[1724164105328,3.83043,2610.7,2610.3,0.55]
[1724164105530,3.83055,2610.6,2610.3,0.55]
[1724164105758,3.83043,2610.7,2610.3,0.55]
[1724164105759,3.83071,2610.5,2610.3,0.55]
[1724164105932,1.16952079,2611.0,2610.0,0.01]
[1724164105933,2.3372,2610.8,2610.0,0.01]
[1724164106149,3.83085,2610.4,2610.0,0.01]
[1724164106347,0.45944881,2610.3,2610.0,0.01]
[1724164106647,3.83127,2610.1,2610.0,0.01]
[1724164106912,3.90763381,2610.1,2610.0,0.01]
[1724164107067,7.66254,2610.1,2610.0,0.01]
[1724164107231,7.73890381,2610.1,2610.0,0.01]
[1724164107437,13.53782522,2610.1,2610.0,0.01]
[1724164107632,15.25831982,2610.1,2610.0,0.01]
[1724164107817,16.03826367,2610.1,2610.0,0.01]
[1724164108018,16.03826367,2610.1,2609.5,0.42895287]
[1724164108019,7.664,2609.6,2609.5,0.42895287]
[1724164108224,12.61561232,2609.6,2609.5,0.42895287]
[1724164108469,16.44773468,2609.6,2609.5,0.42895287]
[1724164108770,19.44773468,2609.6,2609.5,0.42895287]
[1724164109437,19.44773468,2609.6,2609.2,0.127109]
[1724164109438,7.66488,2609.3,2609.2,0.127109]
[1724164109646,3.83378,2608.4,2607.8,2.3208]
[1724164109843,3.83378,2608.4,2607.4,6.14243]
[1724164109844,4.217398,2608.3,2607.4,6.14243]
[1724164110041,3.83378,2608.4,2607.6,3.83492]
[1724164110389,3.83354,2608.6,2607.6,3.83492]
[1724164110390,3.83354,2608.6,2607.8,3.83459]
[1724164110692,3.83354,2608.6,2607.9,3.83449]
[1724164110891,3.83324,2608.8,2607.8,3.83459]
[1724164111206,2.4566,2608.9,2607.4,2.3072]
[1724164111345,4.01035276,2608.9,2608.0,3.83423]
[1724164111544,1.94443148,2609.0,2608.0,3.83423]
[1724164111545,3.83294,2609.0,2608.0,3.83423]
[1724164111743,3.83294,2609.0,2608.2,3.83405]
[1724164112291,3.83294,2609.0,2607.6,3.83482]
[1724164112292,3.83332,2608.8,2607.9,3.83445]
[1724164112456,3.62191457,2609.4,2608.5,3.83351]
[1724164112457,4.01035276,2609.4,2608.5,3.83351]
[1724164112657,4.01035276,2609.4,2608.6,3.83337]
[1724164112658,3.83241,2609.4,2608.6,3.83337]
[1724164112871,3.8326,2609.2,2608.1,2.3726]
[1724164113075,3.8326,2609.2,2608.3,3.8339]
[1724164113241,7.66477,2609.4,2608.4,3.83375]
[1724164113451,3.83269,2609.2,2608.3,3.8339]
[1724164113657,3.83269,2609.2,2608.4,0.55]
[1724164113870,7.66473,2609.4,2608.5,0.438378]
[1724164114080,6.26609,2609.9,2608.7,2.3482]
[1724164114081,2.4345,2609.9,2608.7,2.3482]
[1724164114271,3.83246,2609.3,2608.7,2.3482]
[1724164114481,3.83246,2609.3,2608.8,0.55]
[1724164114683,3.83263,2609.2,2608.8,0.55]
[1724164114885,3.83252,2609.3,2608.8,0.55]
[1724164115087,3.83275,2609.1,2608.0,4.217665]
[1724164115388,3.8329,2609.0,2608.3,2.2574]
[1724164115697,3.83304,2608.9,2608.3,2.2574]
[1724164115843,3.83275,2609.1,2608.3,2.2574]
[1724164116376,3.83275,2609.1,2608.4,0.55]
[1724164116576,3.8315,2610.0,2607.1,0.3833]
[1724164116577,3.83362,2608.5,2607.1,0.3833]
[1724164116781,3.83362,2608.5,2607.2,3.8355]
[1724164116782,3.83401,2608.3,2607.2,3.8355]
[1724164116948,3.83378,2608.4,2607.6,3.83487]
[1724164117143,3.83367,2608.5,2607.4,6.09289]
[1724164117687,3.83367,2608.5,2607.7,2.2578]
[1724164117920,3.83367,2608.5,2607.8,3.83464]
[1724164117921,0.766703,2608.5,2607.8,3.83464]
[1724164118282,3.8336,2608.6,2607.8,3.83464]
[1724164118447,3.83309,2608.9,2608.1,3.8342]
[1724164118652,3.83309,2608.9,2608.0,3.83422]
[1724164118879,0.383275,2609.0,2608.2,3.83394]
[1724164119077,0.383275,2609.0,2608.3,6.79985]
[1724164119282,0.383275,2609.0,2608.4,3.83375]
[1724164119462,3.83263,2609.2,2608.5,0.55]
[1724164119673,3.83251,2609.3,2608.5,0.55]
[1724164119896,3.83276,2609.1,2608.4,0.55]
[1724164121280,3.83343,2608.7,2608.0,2.4807]
[1724164121456,3.83386,2608.4,2607.7,2.4807]
[1724164121658,0.07636381,2608.3,2607.7,2.4807]
[1724164121983,3.83406,2608.2,2607.7,2.4807]
[1724164122111,4.216753,2608.7,2607.8,3.83452]
[1724164122327,3.83363,2608.5,2607.7,6.3154]
[1724164122467,0.383363,2608.4,2607.7,2.4807]
[1724164122668,0.383363,2608.4,2607.7,6.31549]
[1724164122868,0.383363,2608.4,2607.7,2.4807]
[1724164123075,3.83214,2609.6,2608.5,2.4735]
[1724164123286,3.83162,2609.9,2608.5,2.4735]
[1724164123517,3.83162,2609.9,2609.1,3.83271]
[1724164123671,3.83162,2609.9,2609.2,3.83255]
[1724164123872,3.83101,2610.3,2609.5,3.83207]
[1724164124178,4.214251,2610.2,2609.6,0.55]
[1724164124379,4.214251,2610.2,2609.5,0.55]
[1724164124579,3.8313,2610.1,2609.5,0.55]
[1724164124806,3.8313,2610.1,2609.4,4.38224]
[1724164125004,0.383101,2610.2,2609.5,3.83213]
[1724164125206,0.383101,2610.2,2609.6,0.55]
[1724164125207,4.214281,2610.2,2609.6,0.55]
[1724164125395,0.8045331,2610.1,2609.4,8.2144]
[1724164125601,0.8045331,2610.1,2609.6,3.83196]
[1724164125799,0.8045331,2610.1,2609.7,0.55]
[1724164126083,3.83142,2610.0,2609.7,0.55]
[1724164126430,3.83149,2610.0,2609.2,3.8325]
[1724164126729,3.8314,2610.1,2609.4,3.83229]
[1724164126971,3.8314,2610.1,2609.5,0.55]
[1724164127085,3.83106,2610.3,2609.5,0.55]
[1724164127281,6.20932,2610.5,2609.5,0.55]
[1724164127282,0.383106,2610.2,2609.6,7.66378]
[1724164127523,6.20932,2610.5,2609.8,3.8317]
[1724164127693,3.82962,2611.3,2609.8,3.8317]
[1724164127694,3.83045,2610.7,2609.8,3.8317]
[1724164127893,2.3375,2610.8,2609.9,0.55]
[1724164127894,3.83076,2610.5,2609.9,0.55]
[1724164128099,3.83059,2610.6,2609.7,2.4238]
[1724164128283,2.3375,2610.8,2609.8,4.38158]
[1724164128284,4.213739,2610.5,2609.8,4.38158]
[1724164128484,3.83053,2610.7,2609.9,3.83148]
[1724164128683,3.83017,2610.9,2610.0,0.62662036]
[1724164128920,7.661,2610.7,2610.1,0.55]
[1724164129083,3.83048,2610.7,2610.1,0.55]
[1724164129284,3.83075,2610.5,2610.1,0.55]
[1724164129504,3.83075,2610.5,2610.0,0.55]
[1724164129853,3.83075,2610.5,2609.9,0.55]
[1724164130151,3.83085,2610.4,2609.8,0.55]
[1724164130322,3.83075,2610.5,2609.8,0.55]
[1724164130713,3.83084,2610.4,2609.8,0.55]
[1724164131025,3.83116,2610.2,2609.8,0.55]
[1724164131247,3.83116,2610.2,2609.4,2.393]
[1724164131248,3.83116,2610.2,2609.4,6.22515]
[1724164131404,7.66236,2610.2,2609.4,6.22515]
[1724164131609,3.83142,2610.0,2609.4,2.393]
[1724164131805,3.83128,2610.1,2609.4,6.22529]
[1724164132110,3.83116,2610.2,2609.4,6.22529]
[1724164132327,3.82944,2611.4,2610.6,3.83049]
[1724164132521,3.82944,2611.4,2609.3,2.3431]
[1724164132522,1.11059946,2611.4,2610.4,2.303]
[1724164132725,2.2821,2611.5,2610.4,2.303]
[1724164132726,3.82952,2611.3,2610.4,6.13382]
[1724164132954,3.82952,2611.3,2610.3,2.303]
[1724164132955,3.82993,2611.1,2610.3,2.303]
[1724164133273,3.82946,2611.4,2610.0,6.13439]
[1724164133420,3.82946,2611.4,2610.1,0.55]
[1724164133623,0.611156,2611.3,2610.1,0.55]
[1724164133820,3.83023,2610.9,2610.1,0.55]
[1724164134021,3.83025,2610.8,2610.1,0.55]
[1724164134202,3.82995,2611.0,2610.1,4.38114]
[1724164134203,3.83012,2610.9,2610.1,4.38114]
[1724164134619,3.8297,2611.2,2610.2,3.83112]
[1724164134818,0.611156,2611.3,2610.4,3.8308]
[1724164135043,0.611156,2611.3,2610.6,6.28821]
[1724164135265,0.611156,2611.3,2610.6,2.4577]
[1724164135473,3.82911,2611.6,2610.8,3.83024]
[1724164135683,3.82894,2611.7,2610.7,3.83028]
[1724164135845,3.82894,2611.7,2610.8,4.45682628]
[1724164136040,2.2661,2611.8,2610.8,4.45682628]
[1724164136041,2.2661,2611.8,2611.0,3.82983]
[1724164136360,3.82866,2611.9,2611.1,2.2736]
[1724164136570,3.82808,2612.3,2611.1,6.10338]
[1724164136740,3.82791,2612.4,2611.2,4.45621805]
[1724164136943,2.2754,2612.6,2611.5,3.82921]
[1724164137182,3.82748,2612.7,2611.2,4.45621805]
[1724164137183,3.82748,2612.7,2611.8,2.4694]
[1724164137480,1.16531457,2613.1,2611.8,2.4694]
[1724164137481,3.82692,2613.1,2612.0,6.29775]
[1724164137681,0.382692,2613.0,2612.1,0.55]
[1724164137891,6.10205,2613.3,2612.0,2.4694]
[1724164137892,3.82721,2612.9,2612.0,2.4694]
[1724164138268,3.82733,2612.8,2612.1,0.55]
[1724164138670,3.82702,2613.0,2612.1,0.55]
[1724164139121,3.82702,2613.0,2612.1,4.37829]
[1724164139269,3.82674,2613.2,2612.2,2.4694]
[1724164139475,3.82714,2613.0,2612.3,0.55]
[1724164140467,0.382674,2613.1,2612.3,4.37803]
[1724164140851,0.382674,2613.1,2612.3,0.55]
[1724164141148,3.82703,2613.0,2612.3,0.55]
[1724164141306,0.382674,2613.1,2612.3,0.55]
[1724164141695,3.82619,2613.6,2612.3,1.3032349]
[1724164141913,3.82629,2613.5,2612.4,2.3288]
[1724164142268,3.82619,2613.6,2612.6,3.82749]
[1724164142554,3.82657,2613.4,2612.6,3.8275]
[1724164142850,3.82617,2613.6,2612.4,6.1566]
[1724164142851,3.82727,2612.9,2612.4,2.3288]
[1724164143034,3.82692,2613.1,2612.5,0.55]
[1724164143231,0.382692,2613.0,2612.5,0.55]
[1724164143451,4.209762,2613.0,2612.5,0.55]
[1724164143616,0.382692,2613.0,2612.5,0.55]
[1724164143825,3.82673,2613.2,2612.5,4.37774]
[1724164144025,3.82663,2613.3,2612.5,0.55]
[1724164144218,3.82605,2613.7,2612.8,2.3628]
[1724164144528,3.82605,2613.7,2612.9,0.55]
[1724164144728,4.208655,2613.7,2612.9,4.3771]
[1724164144935,3.82545,2614.1,2613.1,3.82683]
[1724164145252,0.59997368,2614.7,2613.1,3.82683]
[1724164145253,3.825,2614.4,2613.1,3.82683]
[1724164145453,3.825,2614.4,2613.2,0.55]
[1724164145454,3.82585,2613.8,2613.2,0.55]
[1724164145946,3.82617,2613.6,2613.1,0.55]
[1724164146177,2.3997,2614.6,2613.1,0.55]
[1724164146178,3.82596,2613.8,2613.1,0.55]
[1724164146455,3.82615,2613.6,2613.1,0.55]
[1724164146598,3.82493,2614.5,2613.5,3.82628]
[1724164146953,3.82454,2614.7,2613.8,3.82573]
[1724164147106,3.82484,2614.5,2613.9,0.55]
[1724164147300,3.82541,2614.1,2613.7,2.3159]
[1724164147534,3.82497,2614.4,2613.7,2.3159]
[1724164147715,3.90152381,2614.3,2613.7,2.3159]
[1724164147917,3.82551,2614.1,2613.7,2.3159]
[1724164148545,3.82487,2614.5,2613.7,2.3159]
[1724164148745,3.82483,2614.5,2613.8,0.55]
[1724164148949,3.82483,2614.5,2613.8,1.2742]
[1724164149714,3.82468,2614.6,2613.8,1.2742]
[1724164149915,3.82483,2614.5,2613.8,1.2742]
[1724164150234,3.82483,2614.5,2613.7,2.3159]
[1724164150558,3.82508,2614.4,2613.7,2.3159]
[1724164150915,3.82523,2614.3,2613.7,2.3159]
[1724164151119,0.07636381,2614.2,2613.7,2.3159]
[1724164151338,3.82529,2614.2,2613.7,2.3159]
[1724164151534,3.82565,2614.0,2613.7,2.3159]
[1724164152102,4.28433281,2614.1,2613.7,2.3159]
[1724164152258,0.382529,2614.1,2613.7,2.3159]
[1724164152464,3.82529,2614.2,2613.7,2.3159]
[1724164153016,3.82544,2614.1,2613.7,2.3159]
[1724164153344,9.18362,2615.2,2613.7,2.3159]
[1724164153345,3.825,2614.4,2613.7,2.3159]
[1724164153657,3.82499,2614.4,2613.8,0.55]
[1724164154079,3.82513,2614.3,2613.8,0.55]
[1724164154221,3.82559,2614.0,2613.7,2.3159]
[1724164154670,0.764969,2614.4,2613.7,2.3159]
[1724164154671,3.82551,2614.1,2613.7,2.3159]
[1724164154970,3.82599,2613.7,2613.3,2.3546]
[1724164155117,3.82564,2614.0,2613.3,2.3546]
[1724164155322,3.82452,2614.8,2613.3,2.3546]
[1724164155323,3.82479,2614.6,2613.8,3.82582]
[1724164155631,3.82479,2614.6,2613.3,2.972722]
[1724164155632,3.82499,2614.4,2613.7,3.8259]
[1724164155853,3.82485,2614.5,2613.5,3.82621]
[1724164156057,2.3227,2614.9,2613.4,2.3546]
[1724164156256,2.3227,2614.9,2612.3,0.5248429]
[1724164156257,3.82687,2613.2,2612.8,2.3527]
[1724164156561,3.82687,2613.2,2611.3,19.54]
[1724164156562,0.07636381,2613.1,2612.4,2.3527]
[1724164156749,3.82697,2613.1,2612.4,2.3527]
[1724164157065,3.82658,2613.3,2612.4,6.18059]
[1724164157378,0.49360559,2614.8,2612.7,3.82732]
[1724164157379,3.82575,2613.9,2612.7,3.82732]
[1724164157682,3.82614,2613.6,2612.8,2.3619]
[1724164157821,6.82533,2614.2,2612.9,4.446045]
[1724164157822,3.82567,2614.0,2612.9,4.446045]
[1724164158023,3.82567,2614.0,2613.2,2.3619]
[1724164158675,3.82529,2614.2,2613.3,0.55]
[1724164158959,3.82585,2613.8,2613.2,2.3619]
[1724164159165,3.82573,2613.9,2613.3,0.55]
[1724164159991,2.3343,2614.6,2613.3,0.84119]
[1724164159992,3.82545,2614.1,2613.3,0.84119]
[1724164160196,3.82498,2614.4,2613.4,3.8264]
[1724164160350,3.82488,2614.5,2613.7,2.3065]
[1724164160551,3.82514,2614.3,2613.7,2.3065]
[1724164160759,3.82457,2614.7,2613.8,4.37571]
[1724164161051,3.82426,2614.9,2614.0,3.82549]
[1724164161284,3.82347,2615.5,2614.2,2.4733]
[1724164161492,3.82309,2615.7,2614.7,2.3479]
[1724164161814,3.82309,2615.7,2614.8,1.167257]
[1724164162159,3.82322,2615.6,2614.8,1.167257]
[1724164162497,3.015672,2616.5,2614.8,1.167257]
[1724164162498,3.82336,2615.5,2614.8,1.167257]
[1724164162701,3.82364,2615.4,2614.8,0.55]
[1724164162859,3.82366,2615.3,2614.8,0.55]
[1724164163060,3.89983381,2615.5,2614.8,0.55]
[1724164163265,3.82396,2615.1,2614.8,0.55]
[1724164163461,3.82368,2615.3,2614.7,2.3479]
[1724164163462,3.82371,2615.3,2614.7,2.3479]
[1724164163663,3.90019381,2615.2,2614.7,2.3479]
[1724164164013,3.90019381,2615.2,2614.1,2.3782]
[1724164164014,3.82411,2615.0,2614.1,2.3782]
[1724164164216,0.07636381,2615.2,2614.2,0.55]
[1724164164217,3.82429,2614.9,2614.2,0.55]
[1724164165106,3.82429,2614.9,2614.1,5.3782]
[1724164165107,3.82484,2614.5,2614.1,2.3782]
[1724164165336,2.2666,2615.1,2613.4,3.8264]
[1724164165337,3.82559,2614.0,2613.4,2.3817]
[1724164165466,3.82514,2614.3,2613.4,2.3817]
[1724164165663,3.82527,2614.2,2613.4,6.20813]
[1724164165904,3.82527,2614.2,2613.4,2.3817]
[1724164166115,3.82543,2614.1,2613.4,2.3817]
[1724164166315,3.82459,2614.7,2613.4,2.3817]
[1724164166316,3.82512,2614.3,2613.4,6.828837]
[1724164166605,3.82512,2614.3,2613.4,6.828937]
[1724164166606,3.82514,2614.3,2613.4,6.828937]
[1724164166907,3.82513,2614.3,2613.5,3.82627]
[1724164167150,3.82499,2614.4,2613.5,3.82627]
[1724164167403,3.82472,2614.6,2613.7,3.82597]
[1724164167720,3.82472,2614.6,2613.8,2.4156]
[1724164167721,3.82506,2614.4,2613.8,2.4156]
[1724164167866,0.07636381,2614.4,2613.4,2.4156]
[1724164168206,0.07636381,2614.4,2613.5,3.82627]
[1724164168207,3.82512,2614.3,2613.5,3.82627]
[1724164168559,3.82528,2614.2,2613.4,2.4156]
[1724164168760,3.82563,2614.0,2613.4,2.4156]
[1724164168998,3.82528,2614.2,2613.4,2.4156]
[1724164169305,3.82528,2614.2,2613.4,6.24189]
[1724164169306,4.590312,2614.2,2613.4,6.24189]
[1724164169514,3.82504,2614.4,2613.5,3.82627]
[1724164169863,3.82504,2614.4,2613.5,3.82619]
[1724164170059,3.82472,2614.6,2613.7,2.3262]
[1724164170303,3.82438,2614.8,2614.0,3.82552]
[1724164170505,3.82478,2614.6,2614.1,0.55]
[1724164170709,0.382438,2614.7,2613.8,0.55]
[1724164170710,3.82522,2614.3,2613.8,0.55]
[1724164170922,0.382438,2614.7,2613.8,0.55]
[1724164170923,3.8251,2614.4,2613.8,0.55]
[1724164171308,3.82469,2614.6,2613.8,0.55]
[1724164171509,3.82482,2614.5,2613.8,0.55]
[1724164171895,3.82469,2614.6,2613.8,4.37583]
[1724164172093,3.82469,2614.6,2613.8,5.428547]
[1724164173341,3.82337,2615.5,2614.4,7.64975]
[1724164173500,3.82337,2615.5,2614.6,3.82453]
[1724164173685,3.82312,2615.7,2614.8,3.82427]
[1724164173895,3.82312,2615.7,2615.0,2.4349]
[1724164174093,3.82312,2615.7,2615.1,0.55]
[1724164174295,3.82282,2615.9,2614.4,3.82493]
[1724164174296,0.07636381,2615.6,2614.4,3.82493]
[1724164174498,3.8239,2615.2,2614.4,2.4349]
[1724164174724,3.90026381,2615.2,2614.5,0.55]
[1724164174882,3.82423,2614.9,2614.4,2.4349]
[1724164175085,3.8241,2615.0,2614.4,2.4349]
[1724164175410,3.82385,2615.2,2614.4,2.4349]
[1724164175614,3.82418,2615.0,2614.4,2.4349]
[1724164175835,3.82441,2614.8,2614.4,2.4349]
[1724164176126,3.82381,2615.2,2614.4,2.4349]
[1724164176310,3.82381,2615.2,2614.5,0.55]
[1724164176311,3.82409,2615.0,2614.5,0.55]
[1724164176808,3.82409,2615.0,2614.4,2.4349]
[1724164177160,3.82438,2614.9,2614.4,2.4349]
[1724164177484,3.90081381,2614.8,2613.9,2.3388]
[1724164177985,3.90081381,2614.8,2614.0,3.82554]
[1724164177986,3.82445,2614.8,2614.0,3.82554]
[1724164178183,3.82347,2615.5,2614.5,2.3839]
[1724164178497,3.82347,2615.5,2614.7,3.82452]
[1724164178680,7.64697,2615.5,2614.7,3.82452]
[1724164178883,3.82347,2615.5,2614.8,0.55]
[1724164179335,3.82382,2615.2,2614.8,0.55]
[1724164179633,3.82351,2615.4,2614.6,0.55]
[1724164179830,0.382351,2615.3,2614.6,0.55]
[1724164180139,3.82327,2615.6,2614.8,3.82438]
[1724164180287,3.82327,2615.6,2614.9,0.55]
[1724164181626,3.82327,2615.6,2614.7,0.55]
[1724164181784,3.82376,2615.3,2614.7,0.55]
[1724164181985,3.82359,2615.4,2614.6,4.37456]
[1724164182414,3.82359,2615.4,2614.6,8.19915]
[1724164182616,3.82359,2615.4,2614.7,3.82452]
[1724164182839,3.82359,2615.4,2614.8,0.55]
[1724164183156,0.382327,2615.5,2614.9,3.82418]
[1724164183456,0.382327,2615.5,2615.0,0.55]
[1724164183812,3.82273,2616.0,2615.3,3.82363]
[1724164184042,3.82205,2616.4,2615.6,2.3381]
[1724164184260,3.82205,2616.4,2615.7,0.07645332]
[1724164184463,3.82205,2616.4,2615.8,0.55]
[1724164184754,0.592372,2616.5,2615.8,0.55]
[1724164184755,3.8218,2616.6,2615.8,0.55]
[1724164184992,7.64366,2616.6,2615.9,3.82277]
[1724164185126,3.8218,2616.6,2616.0,0.55]
[1724164185325,4.42067643,2617.0,2616.2,3.82233]
[1724164185549,4.42067643,2617.0,2616.3,4.44862537]
[1724164185550,0.59944643,2617.0,2616.3,4.44862537]
[1724164185723,0.127109,2617.1,2616.3,5.50953091]
[1724164185947,0.127109,2617.1,2616.4,3.82203]
[1724164186146,0.127109,2617.1,2616.5,0.62642885]
[1724164186346,3.948189,2617.1,2616.6,0.55]
[1724164186658,0.127109,2617.1,2616.6,0.55]
[1724164186893,4.3429419,2617.1,2616.4,0.55]
[1724164187239,4.3429419,2617.1,2616.3,0.55]
[1724164187383,4.3429419,2617.1,2616.4,3.82204]
[1724164187384,0.5219119,2617.1,2616.4,3.82204]
[1724164187553,0.5219119,2617.1,2616.5,0.55]
[1724164187758,0.127109,2617.1,2616.6,2.2788]
[1724164187969,0.127109,2617.1,2616.5,0.55]
[1724164188164,0.127109,2617.1,2616.2,2.2788]
[1724164188165,3.82161,2616.7,2616.2,2.2788]
[1724164188349,3.82204,2616.4,2616.2,2.2788]
[1724164188557,3.82204,2616.4,2615.6,3.82317]
[1724164188558,3.82204,2616.4,2615.8,2.2788]
[1724164188758,7.64366,2616.6,2615.8,2.2788]
[1724164188954,3.82163,2616.7,2616.0,3.82259]
[1724164189192,3.82152,2616.8,2615.8,6.10161]
[1724164189353,3.82176,2616.6,2615.8,2.2788]
[1724164189553,3.822,2616.5,2615.8,2.2788]
[1724164189788,0.382152,2616.7,2615.8,2.2788]